[Event "Titled Tuesday Blitz November 22 Late 2022"]
[White "Salman, Pavel"]
[Black "Mesa Cruz, Juan Carlos"]
[WhiteFideId "24153753"]
[BlackFideId "6423400"]
[WhiteElo "2187"]
[BlackElo "2059"]
[Result "1-0"]
[Round "10"]
[TimeControl "180+1"]
[Date "2022.11.23"]
[WhiteClock "0:02:15"]
[BlackClock "0:00:05"]

1. d4 {[%clk 0:02:59]}  Nf6 {[%clk 0:02:59]} 2. Nc3 {[%clk 0:02:59]}  d5 {[%clk 0:02:58]} 3. Bf4 {[%clk 0:02:59]}  e6 {[%clk 0:02:57]} 4. Nb5 {[%clk 0:02:59]}  Na6 {[%clk 0:02:25]} 5. e3 {[%clk 0:02:59]}  c6 {[%clk 0:02:22]} 6. Nc3 {[%clk 0:02:59]}  Bd6 {[%clk 0:02:22]} 7. Bxd6 {[%clk 0:02:50]}  Qxd6 {[%clk 0:02:17]} 8. Bxa6 {[%clk 0:02:51]}  bxa6 {[%clk 0:02:03]} 9. Na4 {[%clk 0:02:50]}  Nd7 {[%clk 0:01:47]} 10. Nf3 {[%clk 0:02:34]}  c5 {[%clk 0:01:42]} 11. Nxc5 {[%clk 0:02:28]}  Nxc5 {[%clk 0:01:41]} 12. dxc5 {[%clk 0:02:29]}  Qxc5 {[%clk 0:01:39]} 13. Qd4 {[%clk 0:02:29]}  Qxd4 {[%clk 0:01:27]} 14. exd4 {[%clk 0:02:30]}  f6 {[%clk 0:01:14]} 15. O-O-O {[%clk 0:02:25]}  g5 {[%clk 0:00:10]} 16. Ne1 {[%clk 0:02:14]}  Kf7 {[%clk 0:00:05]} 17. Nd3 {[%clk 0:02:15]} 1-0


[Site "https://www.chess.com"]

[Event "Titled Tuesday Blitz November 22 Late 2022"]
[White "Storey, Charles H"]
[Black "Aghasiyev, Kamal"]
[WhiteFideId "406686"]
[BlackFideId "13402854"]
[WhiteElo "2252"]
[BlackElo "2341"]
[Result "0-1"]
[Round "10"]
[TimeControl "180+1"]
[Date "2022.11.23"]
[WhiteClock "0:01:17"]
[BlackClock "0:00:23"]

1. e4 {[%clk 0:03:00]}  c5 {[%clk 0:02:52]} 2. d3 {[%clk 0:02:59]}  Nc6 {[%clk 0:02:49]} 3. c4 {[%clk 0:02:59]}  g6 {[%clk 0:02:45]} 4. Nc3 {[%clk 0:02:55]}  Bg7 {[%clk 0:02:45]} 5. g3 {[%clk 0:02:55]}  e6 {[%clk 0:02:43]} 6. Bg2 {[%clk 0:02:56]}  Nge7 {[%clk 0:02:44]} 7. Nge2 {[%clk 0:02:56]}  O-O {[%clk 0:02:45]} 8. h4 {[%clk 0:02:55]}  d5 {[%clk 0:02:36]} 9. exd5 {[%clk 0:02:53]}  exd5 {[%clk 0:02:35]} 10. Nxd5 {[%clk 0:02:53]}  Nxd5 {[%clk 0:02:33]} 11. Bxd5 {[%clk 0:02:54]}  Nb4 {[%clk 0:02:32]} 12. Nf4 {[%clk 0:02:46]}  Re8+ {[%clk 0:02:23]} 13. Kf1 {[%clk 0:02:36]}  Nxd5 {[%clk 0:02:16]} 14. Nxd5 {[%clk 0:02:36]}  Be6 {[%clk 0:02:02]} 15. Nf4 {[%clk 0:02:33]}  Bxc4 {[%clk 0:02:01]} 16. Be3 {[%clk 0:02:27]}  Bd5 {[%clk 0:01:57]} 17. Rh2 {[%clk 0:02:18]}  b6 {[%clk 0:01:53]} 18. h5 {[%clk 0:02:15]}  Qd7 {[%clk 0:01:36]} 19. b3 {[%clk 0:02:05]}  Rad8 {[%clk 0:01:34]} 20. Rc1 {[%clk 0:02:04]}  Re5 {[%clk 0:00:50]} 21. h6 {[%clk 0:01:58]}  Bf6 {[%clk 0:00:49]} 22. d4 {[%clk 0:01:56]}  Ree8 {[%clk 0:00:39]} 23. Kg1 {[%clk 0:01:43]}  cxd4 {[%clk 0:00:36]} 24. Bxd4 {[%clk 0:01:44]}  Ba8 {[%clk 0:00:35]} 25. Ne2 {[%clk 0:01:31]}  Bxd4 {[%clk 0:00:25]} 26. Rh4 {[%clk 0:01:17]}  Bxf2+ {[%clk 0:00:23]} 0-1


[Site "https://www.chess.com"]

[Event "Titled Tuesday Blitz November 22 Late 2022"]
[White "Todev, Simeon"]
[Black "Gurevich, Dmitry"]
[WhiteFideId "2925133"]
[BlackFideId "2000407"]
[WhiteElo "1938"]
[BlackElo "2506"]
[Result "0-1"]
[Round "10"]
[TimeControl "180+1"]
[Date "2022.11.22"]
[WhiteClock "0:00:04"]
[BlackClock "0:00:06"]

1. e4 {[%clk 0:03:00]}  c5 {[%clk 0:02:59]} 2. Nf3 {[%clk 0:02:59]}  d6 {[%clk 0:02:59]} 3. c3 {[%clk 0:02:59]}  Nf6 {[%clk 0:02:58]} 4. Bd3 {[%clk 0:03:00]}  g6 {[%clk 0:02:57]} 5. Bc2 {[%clk 0:03:00]}  Bg7 {[%clk 0:02:57]} 6. h3 {[%clk 0:03:00]}  O-O {[%clk 0:02:57]} 7. O-O {[%clk 0:03:01]}  e5 {[%clk 0:02:56]} 8. d4 {[%clk 0:03:01]}  exd4 {[%clk 0:02:52]} 9. cxd4 {[%clk 0:03:02]}  Nc6 {[%clk 0:02:51]} 10. dxc5 {[%clk 0:03:00]}  dxc5 {[%clk 0:02:50]} 11. Be3 {[%clk 0:03:01]}  b6 {[%clk 0:02:48]} 12. Nc3 {[%clk 0:03:01]}  Bb7 {[%clk 0:02:45]} 13. e5 {[%clk 0:02:55]}  Nd7 {[%clk 0:02:37]} 14. e6 {[%clk 0:02:55]}  fxe6 {[%clk 0:02:36]} 15. Bb3 {[%clk 0:02:42]}  Qe7 {[%clk 0:02:12]} 16. Ng5 {[%clk 0:02:35]}  Nd8 {[%clk 0:02:09]} 17. Qg4 {[%clk 0:02:21]}  Ne5 {[%clk 0:01:58]} 18. Qg3 {[%clk 0:01:55]}  c4 {[%clk 0:01:55]} 19. Bc2 {[%clk 0:01:51]}  Ndf7 {[%clk 0:01:48]} 20. Rae1 {[%clk 0:01:32]}  Nd3 {[%clk 0:01:33]} 21. Rd1 {[%clk 0:01:09]}  Nxb2 {[%clk 0:01:30]} 22. Nxh7 {[%clk 0:01:08]}  Ne5 {[%clk 0:01:15]} 23. Nxf8 {[%clk 0:01:01]}  Nxd1 {[%clk 0:00:57]} 24. Nxg6 {[%clk 0:00:42]}  Nxg6 {[%clk 0:00:55]} 25. Rxd1 {[%clk 0:00:25]}  Nf8 {[%clk 0:00:47]} 26. Ne4 {[%clk 0:00:23]}  Bxe4 {[%clk 0:00:41]} 27. Bxe4 {[%clk 0:00:23]}  Rd8 {[%clk 0:00:40]} 28. Re1 {[%clk 0:00:17]}  Qf7 {[%clk 0:00:34]} 29. Bg5 {[%clk 0:00:13]}  Rc8 {[%clk 0:00:31]} 30. Re3 {[%clk 0:00:10]}  c3 {[%clk 0:00:30]} 31. Rf3 {[%clk 0:00:10]}  Qd7 {[%clk 0:00:21]} 32. Bf6 {[%clk 0:00:07]}  c2 {[%clk 0:00:17]} 33. Bxc2 {[%clk 0:00:04]}  Rxc2 {[%clk 0:00:15]} 34. Be5 {[%clk 0:00:04]}  Rc5 {[%clk 0:00:12]} 35. Bf4 {[%clk 0:00:02]}  Rf5 {[%clk 0:00:10]} 36. Bd6 {[%clk 0:00:03]}  Rxf3 {[%clk 0:00:09]} 37. gxf3 {[%clk 0:00:03]}  Qf7 {[%clk 0:00:08]} 38. Be5 {[%clk 0:00:03]}  Ng6 {[%clk 0:00:08]} 39. Bd6 {[%clk 0:00:03]}  e5 {[%clk 0:00:07]} 40. h4 {[%clk 0:00:03]}  Kh7 {[%clk 0:00:05]} 41. h5 {[%clk 0:00:04]}  Nf4 {[%clk 0:00:05]} 42. Kf1 {[%clk 0:00:01]}  Qc4+ {[%clk 0:00:04]} 43. Kg1 {[%clk 0:00:02]}  Ne2+ {[%clk 0:00:04]} 44. Kg2 {[%clk 0:00:02]}  Nxg3 {[%clk 0:00:04]} 45. Kxg3 {[%clk 0:00:03]}  Qd5 {[%clk 0:00:04]} 46. Be7 {[%clk 0:00:03]}  Bh6 {[%clk 0:00:05]} 47. Bg5 {[%clk 0:00:03]}  e4 {[%clk 0:00:05]} 48. Kg4 {[%clk 0:00:04]}  Qxg5+ {[%clk 0:00:04]} 49. Kh3 {[%clk 0:00:04]}  Qf4 {[%clk 0:00:04]} 50. fxe4 {[%clk 0:00:04]}  Qxf2 {[%clk 0:00:04]} 51. e5 {[%clk 0:00:04]}  Qe3+ {[%clk 0:00:05]} 52. Kg4 {[%clk 0:00:03]}  Qxe5 {[%clk 0:00:05]} 53. a4 {[%clk 0:00:02]}  Qg5+ {[%clk 0:00:06]} 54. Kf3 {[%clk 0:00:01]}  Qxh5+ {[%clk 0:00:06]} 55. Ke4 {[%clk 0:00:02]}  Qa5 {[%clk 0:00:06]} 56. Kd3 {[%clk 0:00:03]}  Qxa4 {[%clk 0:00:07]} 57. Kc3 {[%clk 0:00:03]}  b5 {[%clk 0:00:07]} 58. Kd3 {[%clk 0:00:04]}  Qc4# {[%clk 0:00:06]} 0-1


[Site "https://www.chess.com"]

[Event "Titled Tuesday Blitz November 22 Late 2022"]
[White "Zhu, Jiner"]
[Black "Khandelwal, Ankush"]
[WhiteFideId "8608059"]
[BlackFideId "413470"]
[WhiteElo "2384"]
[BlackElo "2271"]
[Result "1-0"]
[Round "10"]
[TimeControl "180+1"]
[Date "2022.11.22"]
[WhiteClock "0:02:17"]
[BlackClock "0:00:14"]

1. e4 {[%clk 0:03:00]}  c5 {[%clk 0:01:18]} 2. Nf3 {[%clk 0:03:00]}  d6 {[%clk 0:01:17]} 3. c3 {[%clk 0:02:59]}  Nf6 {[%clk 0:01:10]} 4. h3 {[%clk 0:02:59]}  g6 {[%clk 0:01:10]} 5. Bd3 {[%clk 0:02:58]}  Bg7 {[%clk 0:01:10]} 6. O-O {[%clk 0:02:58]}  O-O {[%clk 0:01:11]} 7. Bc2 {[%clk 0:02:58]}  e5 {[%clk 0:01:10]} 8. d4 {[%clk 0:02:56]}  cxd4 {[%clk 0:01:10]} 9. cxd4 {[%clk 0:02:57]}  exd4 {[%clk 0:01:10]} 10. Nxd4 {[%clk 0:02:58]}  Nc6 {[%clk 0:01:11]} 11. Nxc6 {[%clk 0:02:53]}  bxc6 {[%clk 0:01:12]} 12. Bg5 {[%clk 0:02:49]}  h6 {[%clk 0:01:07]} 13. Bh4 {[%clk 0:02:47]}  Re8 {[%clk 0:01:07]} 14. Nc3 {[%clk 0:02:47]}  Rb8 {[%clk 0:00:55]} 15. Rb1 {[%clk 0:02:46]}  Ba6 {[%clk 0:00:48]} 16. Re1 {[%clk 0:02:46]}  Qe7 {[%clk 0:00:37]} 17. Qd2 {[%clk 0:02:44]}  Rbd8 {[%clk 0:00:37]} 18. Rbd1 {[%clk 0:02:42]}  Bc4 {[%clk 0:00:29]} 19. b3 {[%clk 0:02:41]}  Be6 {[%clk 0:00:29]} 20. Ne2 {[%clk 0:02:23]}  Rd7 {[%clk 0:00:20]} 21. Nd4 {[%clk 0:02:23]}  g5 {[%clk 0:00:17]} 22. Nxc6 {[%clk 0:02:19]}  Qf8 {[%clk 0:00:16]} 23. Bg3 {[%clk 0:02:19]}  Nh5 {[%clk 0:00:16]} 24. Bxd6 {[%clk 0:02:16]}  Rxd6 {[%clk 0:00:14]} 25. Qxd6 {[%clk 0:02:17]} 1-0


[Site "https://www.chess.com"]

[Event "Titled Tuesday Blitz November 22 Late 2022"]
[White "Aghasiyev, Kamal"]
[Black "Prem, Pranav"]
[WhiteFideId "13402854"]
[BlackFideId "30901057"]
[WhiteElo "2341"]
[BlackElo "1970"]
[Result "1-0"]
[Round "11"]
[TimeControl "180+1"]
[Date "2022.11.23"]
[WhiteClock "0:00:03"]
[BlackClock "0:00:02"]

1. d4 {[%clk 0:02:59]}  d5 {[%clk 0:02:58]} 2. Nf3 {[%clk 0:02:57]}  Nf6 {[%clk 0:02:55]} 3. Bf4 {[%clk 0:02:57]}  e6 {[%clk 0:02:55]} 4. e3 {[%clk 0:02:57]}  c5 {[%clk 0:02:55]} 5. c3 {[%clk 0:02:54]}  Nc6 {[%clk 0:02:53]} 6. Nbd2 {[%clk 0:02:53]}  Bd6 {[%clk 0:02:53]} 7. Bg3 {[%clk 0:02:52]}  O-O {[%clk 0:02:52]} 8. Bb5 {[%clk 0:02:51]}  Ne7 {[%clk 0:02:46]} 9. O-O {[%clk 0:02:46]}  Nf5 {[%clk 0:02:40]} 10. Qe2 {[%clk 0:01:51]}  a6 {[%clk 0:02:14]} 11. Ba4 {[%clk 0:01:44]}  b5 {[%clk 0:02:09]} 12. Bc2 {[%clk 0:01:44]}  Nxg3 {[%clk 0:02:09]} 13. hxg3 {[%clk 0:01:44]}  Bb7 {[%clk 0:02:09]} 14. e4 {[%clk 0:01:15]}  dxe4 {[%clk 0:02:06]} 15. Nxe4 {[%clk 0:01:15]}  Nxe4 {[%clk 0:02:04]} 16. Bxe4 {[%clk 0:01:15]}  Bxe4 {[%clk 0:02:04]} 17. Qxe4 {[%clk 0:01:15]}  cxd4 {[%clk 0:02:05]} 18. Rad1 {[%clk 0:01:09]}  Qf6 {[%clk 0:01:44]} 19. Rxd4 {[%clk 0:01:05]}  Bc5 {[%clk 0:01:16]} 20. Rd7 {[%clk 0:01:03]}  Rfc8 {[%clk 0:01:01]} 21. Ne5 {[%clk 0:01:00]}  Rf8 {[%clk 0:00:48]} 22. b4 {[%clk 0:00:52]}  Ba7 {[%clk 0:00:21]} 23. g4 {[%clk 0:00:35]}  Bb8 {[%clk 0:00:08]} 24. Qxa8 {[%clk 0:00:13]}  Qxe5 {[%clk 0:00:08]} 25. g3 {[%clk 0:00:12]}  Qxc3 {[%clk 0:00:05]} 26. Qe4 {[%clk 0:00:09]}  Be5 {[%clk 0:00:01]} 27. Rd3 {[%clk 0:00:09]}  Qb2 {[%clk 0:00:01]} 28. a3 {[%clk 0:00:08]}  Bf6 {[%clk 0:00:01]} 29. Rfd1 {[%clk 0:00:07]}  Qc2 {[%clk 0:00:02]} 30. Kg2 {[%clk 0:00:07]}  h6 {[%clk 0:00:02]} 31. Qf3 {[%clk 0:00:07]}  Qc4 {[%clk 0:00:02]} 32. Qe2 {[%clk 0:00:06]}  Rc8 {[%clk 0:00:02]} 33. f3 {[%clk 0:00:05]}  Qc7 {[%clk 0:00:03]} 34. Qe4 {[%clk 0:00:05]}  Qc2+ {[%clk 0:00:03]} 35. R1d2 {[%clk 0:00:05]}  Qc7 {[%clk 0:00:03]} 36. Rd7 {[%clk 0:00:05]}  Qc3 {[%clk 0:00:02]} 37. f4 {[%clk 0:00:05]}  Qa1 {[%clk 0:00:02]} 38. Qd3 {[%clk 0:00:05]}  Rc1 {[%clk 0:00:02]} 39. Rd1 {[%clk 0:00:05]}  Rxd1 {[%clk 0:00:02]} 40. Qxd1 {[%clk 0:00:05]}  Qxa3 {[%clk 0:00:03]} 41. Qd3 {[%clk 0:00:05]}  Qb2+ {[%clk 0:00:03]} 42. Kf3 {[%clk 0:00:05]}  Qxb4 {[%clk 0:00:04]} 43. Rc7 {[%clk 0:00:04]}  g6 {[%clk 0:00:03]} 44. Rc8+ {[%clk 0:00:04]}  Kg7 {[%clk 0:00:04]} 45. Rc7 {[%clk 0:00:05]}  Qa4 {[%clk 0:00:03]} 46. Qd7 {[%clk 0:00:04]}  Qb3+ {[%clk 0:00:03]} 47. Kg2 {[%clk 0:00:05]}  e5 {[%clk 0:00:03]} 48. f5 {[%clk 0:00:03]}  gxf5 {[%clk 0:00:03]} 49. Qxf5 {[%clk 0:00:04]}  Qb2+ {[%clk 0:00:03]} 50. Kh3 {[%clk 0:00:04]}  Qa1 {[%clk 0:00:03]} 51. Qe4 {[%clk 0:00:04]}  Qf1+ {[%clk 0:00:03]} 52. Kh2 {[%clk 0:00:03]}  Qf2+ {[%clk 0:00:03]} 53. Qg2 {[%clk 0:00:04]}  Qe1 {[%clk 0:00:03]} 54. Rc6 {[%clk 0:00:03]}  e4 {[%clk 0:00:03]} 55. Qa2 {[%clk 0:00:02]}  a5 {[%clk 0:00:02]} 56. Rc7 {[%clk 0:00:03]} 1-0


[Site "https://www.chess.com"]

[Event "Titled Tuesday Blitz November 22 Late 2022"]
[White "Aguilar, Juan"]
[Black "Ghazarian, Kirk"]
[WhiteFideId "3800091"]
[BlackFideId "30908604"]
[WhiteElo "2515"]
[BlackElo "2346"]
[Result "0-1"]
[Round "11"]
[TimeControl "180+1"]
[Date "2022.11.23"]
[WhiteClock "0:01:15"]
[BlackClock "0:02:28"]

1. d4 {[%clk 0:03:00]}  d5 {[%clk 0:02:58]} 2. c4 {[%clk 0:03:01]}  dxc4 {[%clk 0:02:59]} 3. e4 {[%clk 0:03:01]}  Nf6 {[%clk 0:03:00]} 4. e5 {[%clk 0:02:59]}  Nd5 {[%clk 0:03:00]} 5. Bxc4 {[%clk 0:02:58]}  e6 {[%clk 0:03:00]} 6. Nf3 {[%clk 0:02:57]}  Be7 {[%clk 0:03:01]} 7. O-O {[%clk 0:02:54]}  O-O {[%clk 0:03:00]} 8. Nc3 {[%clk 0:02:52]}  Nxc3 {[%clk 0:02:56]} 9. bxc3 {[%clk 0:02:51]}  c5 {[%clk 0:02:56]} 10. Bd3 {[%clk 0:02:42]}  cxd4 {[%clk 0:02:56]} 11. cxd4 {[%clk 0:02:41]}  Nc6 {[%clk 0:02:56]} 12. Bb1 {[%clk 0:02:22]}  g6 {[%clk 0:02:51]} 13. g3 {[%clk 0:02:15]}  b6 {[%clk 0:02:50]} 14. h4 {[%clk 0:02:15]}  Bb7 {[%clk 0:02:47]} 15. Be4 {[%clk 0:02:08]}  Na5 {[%clk 0:02:43]} 16. Bxb7 {[%clk 0:02:06]}  Nxb7 {[%clk 0:02:44]} 17. Bh6 {[%clk 0:02:05]}  Re8 {[%clk 0:02:44]} 18. Qe2 {[%clk 0:02:02]}  Qd5 {[%clk 0:02:44]} 19. Rfc1 {[%clk 0:01:57]}  Rec8 {[%clk 0:02:43]} 20. Qe3 {[%clk 0:01:51]}  Na5 {[%clk 0:02:40]} 21. Nd2 {[%clk 0:01:42]}  Nc4 {[%clk 0:02:32]} 22. Nxc4 {[%clk 0:01:41]}  Rxc4 {[%clk 0:02:33]} 23. Rxc4 {[%clk 0:01:40]}  Qxc4 {[%clk 0:02:34]} 24. Rc1 {[%clk 0:01:36]}  Qxa2 {[%clk 0:02:28]} 25. Rc7 {[%clk 0:01:35]}  Bf8 {[%clk 0:02:28]} 26. Qf4 {[%clk 0:01:30]}  Qb1+ {[%clk 0:02:28]} 27. Kh2 {[%clk 0:01:29]}  Qf5 {[%clk 0:02:28]} 28. Qxf5 {[%clk 0:01:24]}  gxf5 {[%clk 0:02:29]} 29. Bg5 {[%clk 0:01:22]}  a5 {[%clk 0:02:28]} 30. Rb7 {[%clk 0:01:21]}  a4 {[%clk 0:02:28]} 31. Rxb6 {[%clk 0:01:20]}  a3 {[%clk 0:02:28]} 32. Bc1 {[%clk 0:01:16]}  a2 {[%clk 0:02:28]} 33. Bb2 {[%clk 0:01:15]}  a1=Q {[%clk 0:02:28]} 0-1


[Site "https://www.chess.com"]

[Event "Titled Tuesday Blitz November 22 Late 2022"]
[White "Ai, Evan"]
[Black "Romero Ruscalleda, Josep"]
[WhiteFideId "2094770"]
[BlackFideId "2231859"]
[WhiteElo "1963"]
[BlackElo "2183"]
[Result "1-0"]
[Round "11"]
[TimeControl "180+1"]
[Date "2022.11.23"]
[WhiteClock "0:00:36"]
[BlackClock "0:00:01"]

1. e4 {[%clk 0:03:00]}  g6 {[%clk 0:03:00]} 2. d4 {[%clk 0:03:00]}  Bg7 {[%clk 0:03:01]} 3. Nc3 {[%clk 0:02:59]}  d6 {[%clk 0:03:01]} 4. Be3 {[%clk 0:02:59]}  a6 {[%clk 0:03:01]} 5. Qd2 {[%clk 0:02:59]}  b5 {[%clk 0:03:02]} 6. h4 {[%clk 0:02:56]}  h5 {[%clk 0:03:01]} 7. a4 {[%clk 0:02:54]}  b4 {[%clk 0:03:00]} 8. Nd5 {[%clk 0:02:54]}  a5 {[%clk 0:02:55]} 9. Bc4 {[%clk 0:02:52]}  Bb7 {[%clk 0:02:42]} 10. f3 {[%clk 0:02:47]}  Nd7 {[%clk 0:02:36]} 11. Nh3 {[%clk 0:02:46]}  Ngf6 {[%clk 0:02:20]} 12. Ndf4 {[%clk 0:02:31]}  e5 {[%clk 0:02:08]} 13. Bxf7+ {[%clk 0:02:24]}  Kxf7 {[%clk 0:02:01]} 14. Ng5+ {[%clk 0:02:23]}  Ke8 {[%clk 0:01:50]} 15. Nfe6 {[%clk 0:02:20]}  Qe7 {[%clk 0:01:50]} 16. Nxc7+ {[%clk 0:02:20]}  Kd8 {[%clk 0:01:50]} 17. Nxa8 {[%clk 0:02:17]}  Bxa8 {[%clk 0:01:48]} 18. dxe5 {[%clk 0:02:17]}  Nxe5 {[%clk 0:01:45]} 19. Qd4 {[%clk 0:02:05]}  Nh7 {[%clk 0:01:16]} 20. Qb6+ {[%clk 0:01:36]}  Kc8 {[%clk 0:01:16]} 21. Qxa5 {[%clk 0:01:26]}  Bb7 {[%clk 0:01:06]} 22. Qxb4 {[%clk 0:01:22]}  Nxg5 {[%clk 0:01:04]} 23. hxg5 {[%clk 0:01:21]}  Nc6 {[%clk 0:00:55]} 24. Qa3 {[%clk 0:01:16]}  Qe5 {[%clk 0:00:51]} 25. Kf2 {[%clk 0:01:05]}  h4 {[%clk 0:00:47]} 26. Rh3 {[%clk 0:00:59]}  Kb8 {[%clk 0:00:19]} 27. Rah1 {[%clk 0:00:55]}  Rf8 {[%clk 0:00:16]} 28. Rxh4 {[%clk 0:00:54]}  Qxb2 {[%clk 0:00:16]} 29. Qxb2 {[%clk 0:00:52]}  Bxb2 {[%clk 0:00:16]} 30. Rh7 {[%clk 0:00:51]}  Ne5 {[%clk 0:00:15]} 31. Rb1 {[%clk 0:00:47]}  Nc4 {[%clk 0:00:14]} 32. Ke2 {[%clk 0:00:40]}  d5 {[%clk 0:00:13]} 33. exd5 {[%clk 0:00:38]}  Bxd5 {[%clk 0:00:13]} 34. Bd4 {[%clk 0:00:39]}  Re8+ {[%clk 0:00:11]} 35. Kd3 {[%clk 0:00:39]}  Ka8 {[%clk 0:00:05]} 36. Bxb2 {[%clk 0:00:37]}  Re3+ {[%clk 0:00:04]} 37. Kd4 {[%clk 0:00:36]}  Re2 {[%clk 0:00:04]} 38. Kxd5 {[%clk 0:00:36]}  Nxb2 {[%clk 0:00:03]} 39. Rxb2 {[%clk 0:00:36]}  Rd2+ {[%clk 0:00:01]} 40. Kc4 {[%clk 0:00:36]} 1-0


[Site "https://www.chess.com"]

[Event "Titled Tuesday Blitz November 22 Late 2022"]
[White "Annaberdiyev, Babageldi"]
[Black "Djordjevic, Vuk"]
[WhiteFideId "14000385"]
[BlackFideId "902098"]
[WhiteElo "2332"]
[BlackElo "2456"]
[Result "1/2-1/2"]
[Round "11"]
[TimeControl "180+1"]
[Date "2022.11.23"]
[WhiteClock "0:01:33"]
[BlackClock "0:00:04"]

1. e4 {[%clk 0:03:00]}  d5 {[%clk 0:03:00]} 2. exd5 {[%clk 0:03:00]}  Qxd5 {[%clk 0:03:01]} 3. Nc3 {[%clk 0:03:01]}  Qd6 {[%clk 0:03:01]} 4. d4 {[%clk 0:03:01]}  Nf6 {[%clk 0:03:02]} 5. Nf3 {[%clk 0:03:02]}  c6 {[%clk 0:03:02]} 6. g3 {[%clk 0:03:00]}  Bg4 {[%clk 0:03:02]} 7. Bg2 {[%clk 0:03:00]}  e6 {[%clk 0:03:02]} 8. Bf4 {[%clk 0:03:00]}  Qd8 {[%clk 0:03:02]} 9. h3 {[%clk 0:03:01]}  Bxf3 {[%clk 0:03:02]} 10. Qxf3 {[%clk 0:03:02]}  Bd6 {[%clk 0:03:02]} 11. O-O-O {[%clk 0:03:02]}  O-O {[%clk 0:03:01]} 12. h4 {[%clk 0:03:02]}  Bxf4+ {[%clk 0:02:58]} 13. Qxf4 {[%clk 0:03:02]}  Nd5 {[%clk 0:02:55]} 14. Bxd5 {[%clk 0:03:02]}  cxd5 {[%clk 0:02:56]} 15. h5 {[%clk 0:03:03]}  h6 {[%clk 0:02:55]} 16. g4 {[%clk 0:03:03]}  Nc6 {[%clk 0:02:48]} 17. Rhg1 {[%clk 0:03:02]}  Qg5 {[%clk 0:02:48]} 18. Qxg5 {[%clk 0:03:01]}  hxg5 {[%clk 0:02:49]} 19. Ne2 {[%clk 0:03:02]}  f5 {[%clk 0:02:38]} 20. f4 {[%clk 0:02:08]}  gxf4 {[%clk 0:02:01]} 21. Nxf4 {[%clk 0:02:09]}  Rae8 {[%clk 0:01:04]} 22. Ng6 {[%clk 0:02:07]}  Rf7 {[%clk 0:00:50]} 23. g5 {[%clk 0:02:07]}  f4 {[%clk 0:00:43]} 24. c3 {[%clk 0:02:07]}  f3 {[%clk 0:00:28]} 25. Rdf1 {[%clk 0:02:05]}  e5 {[%clk 0:00:26]} 26. dxe5 {[%clk 0:02:04]}  Nxe5 {[%clk 0:00:26]} 27. Nxe5 {[%clk 0:02:04]}  Rxe5 {[%clk 0:00:27]} 28. Rf2 {[%clk 0:02:01]}  Rff5 {[%clk 0:00:21]} 29. h6 {[%clk 0:01:54]}  g6 {[%clk 0:00:10]} 30. Kd2 {[%clk 0:01:52]}  Kh7 {[%clk 0:00:09]} 31. Rg3 {[%clk 0:01:49]}  Rxg5 {[%clk 0:00:08]} 32. Rxg5 {[%clk 0:01:48]}  Rxg5 {[%clk 0:00:09]} 33. Rxf3 {[%clk 0:01:48]}  Rf5 {[%clk 0:00:10]} 34. Re3 {[%clk 0:01:48]}  Rf7 {[%clk 0:00:06]} 35. Rh3 {[%clk 0:01:48]}  g5 {[%clk 0:00:06]} 36. Ke3 {[%clk 0:01:46]}  Kg6 {[%clk 0:00:06]} 37. Kd4 {[%clk 0:01:46]}  Rh7 {[%clk 0:00:02]} 38. Kxd5 {[%clk 0:01:44]}  g4 {[%clk 0:00:03]} 39. Rh1 {[%clk 0:01:44]}  Rxh6 {[%clk 0:00:03]} 40. Rg1 {[%clk 0:01:44]}  Kf5 {[%clk 0:00:03]} 41. c4 {[%clk 0:01:41]}  Kf4 {[%clk 0:00:03]} 42. c5 {[%clk 0:01:41]}  Kf3 {[%clk 0:00:02]} 43. b4 {[%clk 0:01:42]}  g3 {[%clk 0:00:02]} 44. b5 {[%clk 0:01:42]}  Rg6 {[%clk 0:00:02]} 45. c6 {[%clk 0:01:42]}  bxc6+ {[%clk 0:00:01]} 46. bxc6 {[%clk 0:01:43]}  Kf2 {[%clk 0:00:02]} 47. Rc1 {[%clk 0:01:38]}  g2 {[%clk 0:00:03]} 48. c7 {[%clk 0:01:38]}  Rg8 {[%clk 0:00:04]} 49. Kd6 {[%clk 0:01:36]}  g1=Q {[%clk 0:00:02]} 50. Rxg1 {[%clk 0:01:36]}  Kxg1 {[%clk 0:00:03]} 51. Kd7 {[%clk 0:01:36]}  Rg7+ {[%clk 0:00:03]} 52. Kd6 {[%clk 0:01:36]}  Rg8 {[%clk 0:00:03]} 53. Kd7 {[%clk 0:01:33]}  Rg7+ {[%clk 0:00:03]} 54. Kd6 {[%clk 0:01:33]}  Rg8 {[%clk 0:00:04]} 1/2-1/2


[Site "https://www.chess.com"]

[Event "Titled Tuesday Blitz November 22 Late 2022"]
[White "Arbunic Castro, Giovanna"]
[Black "Sariego Figueredo, Wilfredo"]
[WhiteFideId "3400549"]
[BlackFideId "3500080"]
[WhiteElo "2005"]
[BlackElo "2309"]
[Result "1-0"]
[Round "11"]
[TimeControl "180+1"]
[Date "2022.11.23"]
[WhiteClock "0:02:50"]
[BlackClock "0:02:19"]

1. e4 {[%clk 0:03:00]}  c5 {[%clk 0:02:59]} 2. g3 {[%clk 0:03:00]}  a6 {[%clk 0:02:57]} 3. Bg2 {[%clk 0:02:59]}  Nc6 {[%clk 0:02:57]} 4. Ne2 {[%clk 0:02:59]}  b5 {[%clk 0:02:57]} 5. c3 {[%clk 0:02:58]}  Bb7 {[%clk 0:02:56]} 6. O-O {[%clk 0:02:58]}  e5 {[%clk 0:02:56]} 7. d4 {[%clk 0:02:57]}  cxd4 {[%clk 0:02:56]} 8. cxd4 {[%clk 0:02:57]}  exd4 {[%clk 0:02:55]} 9. Nxd4 {[%clk 0:02:57]}  Nxd4 {[%clk 0:02:30]} 10. Qxd4 {[%clk 0:02:56]}  Qf6 {[%clk 0:02:29]} 11. e5 {[%clk 0:02:52]}  Bxg2 {[%clk 0:02:19]} 12. exf6 {[%clk 0:02:50]} 1-0


[Site "https://www.chess.com"]

[Event "Titled Tuesday Blitz November 22 Late 2022"]
[White "Arngrimsson, Dagur"]
[Black "Sztokbant, Bernardo Vainzoff"]
[WhiteFideId "2301288"]
[BlackFideId "2115956"]
[WhiteElo "2286"]
[BlackElo "2228"]
[Result "1-0"]
[Round "11"]
[TimeControl "180+1"]
[Date "2022.11.23"]
[WhiteClock "0:02:22"]
[BlackClock "0:02:16"]

1. e4 {[%clk 0:02:59]}  c5 {[%clk 0:03:00]} 2. Nf3 {[%clk 0:02:58]}  d6 {[%clk 0:02:59]} 3. d4 {[%clk 0:02:59]}  cxd4 {[%clk 0:03:00]} 4. Nxd4 {[%clk 0:03:00]}  Nf6 {[%clk 0:03:00]} 5. Nc3 {[%clk 0:03:00]}  Nc6 {[%clk 0:03:01]} 6. Bc4 {[%clk 0:02:51]}  e6 {[%clk 0:03:01]} 7. Bb3 {[%clk 0:02:50]}  Be7 {[%clk 0:03:01]} 8. O-O {[%clk 0:02:50]}  O-O {[%clk 0:03:01]} 9. f4 {[%clk 0:02:49]}  Qc7 {[%clk 0:03:01]} 10. f5 {[%clk 0:02:47]}  e5 {[%clk 0:02:56]} 11. Nde2 {[%clk 0:02:43]}  Na5 {[%clk 0:02:49]} 12. Nd5 {[%clk 0:02:37]}  Qd8 {[%clk 0:02:45]} 13. Nxe7+ {[%clk 0:02:28]}  Qxe7 {[%clk 0:02:45]} 14. Bg5 {[%clk 0:02:29]}  Nxb3 {[%clk 0:02:40]} 15. axb3 {[%clk 0:02:30]}  h6 {[%clk 0:02:41]} 16. Bh4 {[%clk 0:02:30]}  b6 {[%clk 0:02:37]} 17. Ng3 {[%clk 0:02:29]}  Bb7 {[%clk 0:02:27]} 18. Nh5 {[%clk 0:02:28]}  Bxe4 {[%clk 0:02:27]} 19. Bxf6 {[%clk 0:02:28]}  Qc7 {[%clk 0:02:16]} 20. Qg4 {[%clk 0:02:22]} 1-0


[Site "https://www.chess.com"]